[Event "Berliner Meisterschaft 2023"]
[Site "Berlin"]
[Date "2023.04.11"]
[Round "4.4"]
[White "Donath, Johann"]
[Black "Schmidek, Emil"]
[Result "0-1"]
[TimeControl "90 minutes / 40 moves + 30 minutes + 30 seconds"]
[BlackTitle "IM"]
[WhiteFideId "24685160"]
[BlackFideId "12908150"]
[WhiteElo "2031"]
[BlackElo "2433"]

1. e4 {[%clk 01:21:54]} {[%emt 00:09:05]} e5 {[%clk 01:30:55]} {[%emt
00:00:05]} 2. Nf3 {[%clk 01:22:00]} {[%emt 00:00:21]} Nc6 {[%clk 01:31:22]}
{[%emt 00:00:06]} 3. Bb5 {[%clk 01:22:16]} {[%emt 00:00:13]} a6 {[%clk
01:31:47]} {[%emt 00:00:06]} 4. Ba4 {[%clk 01:22:26]} {[%emt 00:00:18]} Nf6
{[%clk 01:32:09]} {[%emt 00:00:08]} 5. O-O {[%clk 01:22:47]} {[%emt 00:00:09]}
Be7 {[%clk 01:32:18]} {[%emt 00:00:21]} 6. Bxc6 {[%clk 01:22:59]} {[%emt
00:00:18]} dxc6 {[%clk 01:30:33]} {[%emt 00:02:15]} 7. d3 {[%clk 01:22:48]}
{[%emt 00:00:41]} Nd7 {[%clk 01:28:51]} {[%emt 00:02:12]} 8. Nbd2 {[%clk
01:22:17]} {[%emt 00:01:01]} f6 {[%clk 01:27:45]} {[%emt 00:01:36]} 9. Nh4
{[%clk 01:13:14]} {[%emt 00:09:33]} g6 {[%clk 01:16:38]} {[%emt 00:11:37]} 10.
f4 {[%clk 01:06:12]} {[%emt 00:07:32]} exf4 {[%clk 01:14:01]} {[%emt 00:03:06]}
11. Rxf4 {[%clk 01:05:37]} {[%emt 00:01:05]} Ne5 {[%clk 01:10:21]} {[%emt
00:04:11]} 12. Nhf3 {[%clk 01:03:27]} {[%emt 00:02:40]} Bc5+ {[%clk 00:56:12]}
{[%emt 00:14:40]} 13. Kf1 {[%clk 01:01:35]} {[%emt 00:02:21]} Be3 {[%clk
00:50:01]} {[%emt 00:06:40]} 14. Nb3 {[%clk 01:00:59]} {[%emt 00:01:07]} Bxf4
{[%clk 00:47:13]} {[%emt 00:03:18]} 15. Bxf4 {[%clk 01:01:23]} {[%emt
00:00:05]} Bg4 {[%clk 00:45:22]} {[%emt 00:02:21]} 16. Qe1 {[%clk 01:00:22]}
{[%emt 00:01:31]} Qe7 {[%clk 00:40:00]} {[%emt 00:05:53]} 17. Qg3 {[%clk
00:58:19]} {[%emt 00:02:33]} Bxf3 {[%clk 00:40:09]} {[%emt 00:00:21]} 18. gxf3
{[%clk 00:58:43]} {[%emt 00:00:06]} O-O-O {[%clk 00:37:20]} {[%emt 00:03:19]}
19. d4 {[%clk 00:58:17]} {[%emt 00:00:57]} Nc4 {[%clk 00:37:30]} {[%emt
00:00:19]} 20. Re1 {[%clk 00:54:08]} {[%emt 00:04:40]} g5 {[%clk 00:33:04]}
{[%emt 00:04:56]} 21. Bc1 {[%clk 00:54:13]} {[%emt 00:00:25]} h6 {[%clk
00:33:09]} {[%emt 00:00:25]} 22. c3 {[%clk 00:54:15]} {[%emt 00:00:29]} b6
{[%clk 00:31:14]} {[%emt 00:02:24]} 23. Na1 {[%clk 00:53:52]} {[%emt 00:00:53]}
Nd6 {[%clk 00:27:39]} {[%emt 00:04:05]} 24. Nc2 {[%clk 00:51:57]} {[%emt
00:02:25]} Qe6 {[%clk 00:25:09]} {[%emt 00:02:59]} 25. b3 {[%clk 00:50:46]}
{[%emt 00:01:42]} f5 {[%clk 00:23:56]} {[%emt 00:01:43]} 26. d5 {[%clk
00:49:51]} {[%emt 00:01:25]} Qd7 {[%clk 00:12:25]} {[%emt 00:12:01]} 27. c4
{[%clk 00:48:28]} {[%emt 00:01:53]} fxe4 {[%clk 00:12:32]} {[%emt 00:00:24]} 28.
fxe4 {[%clk 00:47:53]} {[%emt 00:01:05]} Nxe4 {[%clk 00:11:40]} {[%emt
00:01:22]} 29. Qg2 {[%clk 00:48:18]} {[%emt 00:00:04]} cxd5 {[%clk 00:11:40]}
{[%emt 00:00:30]} 30. cxd5 {[%clk 00:48:40]} {[%emt 00:00:08]} Rhe8 {[%clk
00:10:13]} {[%emt 00:01:56]} 31. d6 {[%clk 00:48:41]} {[%emt 00:00:29]} Qf5+
{[%clk 00:10:00]} {[%emt 00:00:44]} 32. Kg1 {[%clk 00:48:58]} {[%emt 00:00:13]}
Rxd6 {[%clk 00:10:20]} {[%emt 00:00:10]} 33. Ne3 {[%clk 00:49:12]} {[%emt
00:00:16]} Qc5 {[%clk 00:09:35]} {[%emt 00:01:14]} 34. Kh1 {[%clk 00:49:15]}
{[%emt 00:00:27]} Kb8 {[%clk 00:09:02]} {[%emt 00:01:03]} 35. Rf1 {[%clk
00:49:10]} {[%emt 00:00:35]} Rf6 {[%clk 00:08:52]} {[%emt 00:00:40]} 36. Rd1
{[%clk 00:48:05]} {[%emt 00:01:36]} Nf2+ {[%clk 00:08:59]} {[%emt 00:00:23]}
0-1

[Event "Berliner Meisterschaft 2023"]
[Site "Berlin"]
[Date "2023.04.11"]
[Round "4.5"]
[White "Poltorak, Sebastian"]
[Black "Georg, Tscheuschner"]
[Result "1-0"]
[TimeControl "90 minutes / 40 moves + 30 minutes + 30 seconds"]
[WhiteTitle "FM"]
[WhiteFideId "1199498"]
[BlackFideId "12935549"]
[WhiteElo "2368"]
[BlackElo "2185"]

1. e4 {[%clk 01:21:45]} {[%emt 00:09:06]} c5 {[%clk 01:30:56]} {[%emt
00:00:13]} 2. Nc3 {[%clk 01:21:27]} {[%emt 00:00:46]} g6 {[%clk 01:31:21]}
{[%emt 00:00:05]} 3. d4 {[%clk 01:21:46]} {[%emt 00:00:11]} cxd4 {[%clk
01:31:24]} {[%emt 00:00:27]} 4. Qxd4 {[%clk 01:22:10]} {[%emt 00:00:06]} Nf6
{[%clk 01:31:45]} {[%emt 00:00:09]} 5. Nf3 {[%clk 01:22:32]} {[%emt 00:00:08]}
Nc6 {[%clk 01:30:01]} {[%emt 00:02:13]} 6. Qa4 {[%clk 01:22:36]} {[%emt
00:00:26]} d6 {[%clk 01:27:04]} {[%emt 00:03:26]} 7. e5 {[%clk 01:22:58]}
{[%emt 00:00:09]} dxe5 {[%clk 01:27:20]} {[%emt 00:00:14]} 8. Nxe5 {[%clk
01:23:22]} {[%emt 00:00:06]} Bg7 {[%clk 01:27:08]} {[%emt 00:00:42]} 9. Bb5
{[%clk 01:17:12]} {[%emt 00:06:40]} O-O {[%clk 01:26:29]} {[%emt 00:01:10]} 10.
Nxc6 {[%clk 01:17:30]} {[%emt 00:00:12]} bxc6 {[%clk 01:26:55]} {[%emt
00:00:05]} 11. Bxc6 {[%clk 01:17:55]} {[%emt 00:00:05]} Rb8 {[%clk 01:23:30]}
{[%emt 00:03:55]} 12. O-O {[%clk 01:14:42]} {[%emt 00:03:43]} Qc7 {[%clk
01:14:42]} {[%emt 00:09:18]} 13. Rb1 {[%clk 01:03:25]} {[%emt 00:11:46]} Rb6
{[%clk 00:55:43]} {[%emt 00:19:29]} 14. Bf3 {[%clk 01:01:02]} {[%emt 00:02:53]}
Bb7 {[%clk 00:53:29]} {[%emt 00:02:45]} 15. Bf4 {[%clk 00:53:52]} {[%emt
00:07:40]} e5 {[%clk 00:32:04]} {[%emt 00:21:54]} 16. Bxb7 {[%clk 00:54:12]}
{[%emt 00:00:10]} exf4 {[%clk 00:31:44]} {[%emt 00:00:50]} 17. Bf3 {[%clk
00:54:30]} {[%emt 00:00:12]} Rfb8 {[%clk 00:30:59]} {[%emt 00:01:15]} 18. Qa5
{[%clk 00:53:42]} {[%emt 00:01:17]} R6b7 {[%clk 00:26:39]} {[%emt 00:04:50]} 19.
Qxc7 {[%clk 00:51:02]} {[%emt 00:03:10]} Rxc7 {[%clk 00:27:07]} {[%emt
00:00:02]} 20. Rfc1 {[%clk 00:50:53]} {[%emt 00:00:39]} Rbc8 {[%clk 00:22:00]}
{[%emt 00:05:39]} 21. Be2 {[%clk 00:46:08]} {[%emt 00:05:14]} Kf8 {[%clk
00:20:16]} {[%emt 00:02:13]} 22. Bd3 {[%clk 00:45:00]} {[%emt 00:01:38]} f3
{[%clk 00:19:14]} {[%emt 00:01:33]} 23. gxf3 {[%clk 00:44:32]} {[%emt
00:00:58]} Rc5 {[%clk 00:19:39]} {[%emt 00:00:05]} 24. Ne2 {[%clk 00:39:11]}
{[%emt 00:05:51]} Rg5+ {[%clk 00:18:20]} {[%emt 00:01:49]} 25. Kh1 {[%clk
00:39:32]} {[%emt 00:00:09]} Ra5 {[%clk 00:18:05]} {[%emt 00:00:45]} 26. a3
{[%clk 00:39:22]} {[%emt 00:00:40]} Bh6 {[%clk 00:16:57]} {[%emt 00:01:38]} 27.
Rd1 {[%clk 00:39:01]} {[%emt 00:00:50]} Nd5 {[%clk 00:17:00]} {[%emt 00:00:27]}
28. c3 {[%clk 00:36:07]} {[%emt 00:03:24]} Ke7 {[%clk 00:06:57]} {[%emt
00:10:33]} 29. Nd4 {[%clk 00:34:12]} {[%emt 00:02:26]} Nf4 {[%clk 00:06:48]}
{[%emt 00:00:39]} 30. Bb5 {[%clk 00:34:16]} {[%emt 00:00:25]} Kf6 {[%clk
00:05:20]} {[%emt 00:01:58]} 31. a4 {[%clk 00:33:32]} {[%emt 00:01:14]} Nd5
{[%clk 00:04:17]} {[%emt 00:01:33]} 32. Nb3 {[%clk 00:32:28]} {[%emt 00:01:35]}
Rxb5 {[%clk 00:03:34]} {[%emt 00:01:13]} 33. axb5 {[%clk 00:32:53]} {[%emt
00:00:05]} Nf4 {[%clk 00:03:22]} {[%emt 00:00:42]} 34. Ra1 {[%clk 00:32:34]}
{[%emt 00:00:49]} Nh3 {[%clk 00:03:41]} {[%emt 00:00:11]} 35. Kg2 {[%clk
00:32:44]} {[%emt 00:00:20]} Nf4+ {[%clk 00:04:05]} {[%emt 00:00:05]} 36. Kf1
{[%clk 00:33:08]} {[%emt 00:00:06]} Re8 {[%clk 00:02:59]} {[%emt 00:01:36]} 37.
Re1 {[%clk 00:33:15]} {[%emt 00:00:23]} Rb8 {[%clk 00:03:10]} {[%emt 00:00:19]}
38. c4 {[%clk 00:33:20]} {[%emt 00:00:26]} Nd3 {[%clk 00:01:43]} {[%emt
00:01:57]} 39. Re2 {[%clk 00:33:45]} {[%emt 00:00:05]} Nf4 {[%clk 00:02:00]}
{[%emt 00:00:12]} 40. Rd2 {[%clk 00:33:10]} {[%emt 00:01:06]} Re8 {[%clk
00:02:08]} {[%emt 00:00:21]} 41. Rxa7 {[%clk 00:33:12]} {[%emt 00:00:28]} Re5
{[%clk 00:02:21]} {[%emt 00:00:17]} 42. Rd6+ {[%clk 00:32:13]} {[%emt
00:01:30]} Kg5 {[%clk 00:00:57]} {[%emt 00:01:54]} 43. Rxf7 {[%clk 00:32:07]}
{[%emt 00:00:35]} 1-0

[Event "Berliner Meisterschaft 2023"]
[Site "Berlin"]
[Date "2023.04.11"]
[Round "4.6"]
[White "Hesse, Henrik"]
[Black "Glantz, Robert"]
[Result "0-1"]
[TimeControl "90 minutes / 40 moves + 30 minutes + 30 seconds"]
[BlackTitle "FM"]
[WhiteFideId "12956465"]
[BlackFideId "24629596"]
[WhiteElo "2197"]
[BlackElo "2360"]

1. c4 {[%clk 01:30:57]} {[%emt 00:00:03]} e5 {[%clk 01:27:07]} {[%emt
00:03:46]} 2. g3 {[%clk 01:31:10]} {[%emt 00:00:26]} d6 {[%clk 01:26:41]}
{[%emt 00:00:56]} 3. Bg2 {[%clk 01:31:26]} {[%emt 00:00:14]} f5 {[%clk
01:26:22]} {[%emt 00:00:48]} 4. d3 {[%clk 01:31:39]} {[%emt 00:00:18]} Nf6
{[%clk 01:25:19]} {[%emt 00:01:33]} 5. Nc3 {[%clk 01:31:55]} {[%emt 00:00:14]}
Be7 {[%clk 01:25:07]} {[%emt 00:00:41]} 6. e3 {[%clk 01:30:19]} {[%emt
00:02:05]} O-O {[%clk 01:24:50]} {[%emt 00:00:46]} 7. Nge2 {[%clk 01:30:24]}
{[%emt 00:00:26]} c6 {[%clk 01:22:24]} {[%emt 00:02:56]} 8. O-O {[%clk
01:30:18]} {[%emt 00:00:35]} Be6 {[%clk 01:18:40]} {[%emt 00:04:14]} 9. b3
{[%clk 01:21:29]} {[%emt 00:09:20]} Nbd7 {[%clk 01:09:56]} {[%emt 00:09:13]} 10.
Bb2 {[%clk 01:13:39]} {[%emt 00:08:21]} Kh8 {[%clk 01:05:52]} {[%emt 00:04:34]}
11. d4 {[%clk 00:47:47]} {[%emt 00:26:23]} Rc8 {[%clk 01:03:03]} {[%emt
00:03:18]} 12. d5 {[%clk 00:37:39]} {[%emt 00:10:38]} Bg8 {[%clk 01:00:30]}
{[%emt 00:03:02]} 13. Qd2 {[%clk 00:29:17]} {[%emt 00:08:52]} Qe8 {[%clk
00:53:42]} {[%emt 00:07:18]} 14. dxc6 {[%clk 00:26:16]} {[%emt 00:03:32]} bxc6
{[%clk 00:54:05]} {[%emt 00:00:07]} 15. Ba3 {[%clk 00:25:01]} {[%emt 00:01:45]}
Nc5 {[%clk 00:53:18]} {[%emt 00:01:17]} 16. Bxc5 {[%clk 00:19:50]} {[%emt
00:05:42]} dxc5 {[%clk 00:53:42]} {[%emt 00:00:06]} 17. e4 {[%clk 00:19:04]}
{[%emt 00:01:15]} Be6 {[%clk 00:43:58]} {[%emt 00:10:13]} 18. f4 {[%clk
00:16:37]} {[%emt 00:02:58]} Rd8 {[%clk 00:33:38]} {[%emt 00:10:50]} 19. Qe3
{[%clk 00:15:57]} {[%emt 00:01:10]} exf4 {[%clk 00:29:53]} {[%emt 00:04:16]} 20.
Nxf4 {[%clk 00:16:01]} {[%emt 00:00:26]} Ng4 {[%clk 00:29:19]} {[%emt
00:01:03]} 21. Qf3 {[%clk 00:12:07]} {[%emt 00:04:25]} Bf6 {[%clk 00:23:29]}
{[%emt 00:06:19]} 22. Nxe6 {[%clk 00:04:15]} {[%emt 00:08:22]} Qxe6 {[%clk
00:23:53]} {[%emt 00:00:07]} 23. Rac1 {[%clk 00:04:33]} {[%emt 00:00:12]} Bd4+
{[%clk 00:15:00]} {[%emt 00:09:22]} 24. Kh1 {[%clk 00:04:57]} {[%emt 00:00:06]}
Qh6 {[%clk 00:14:43]} {[%emt 00:00:46]} 25. h4 {[%clk 00:04:38]} {[%emt
00:00:50]} Ne3 {[%clk 00:12:41]} {[%emt 00:02:32]} 26. Rfe1 {[%clk 00:04:02]}
{[%emt 00:01:06]} f4 {[%clk 00:05:11]} {[%emt 00:08:00]} 27. Ne2 {[%clk
00:01:10]} {[%emt 00:03:22]} Nxg2 {[%clk 00:03:59]} {[%emt 00:01:43]} 28. Kxg2
{[%clk 00:01:31]} {[%emt 00:00:09]} fxg3 {[%clk 00:04:24]} {[%emt 00:00:04]} 29.
Nxd4 {[%clk 00:01:04]} {[%emt 00:00:58]} Rxf3 {[%clk 00:04:21]} {[%emt
00:00:32]} 30. Nxf3 {[%clk 00:01:31]} {[%emt 00:00:03]} Qf4 {[%clk 00:02:55]}
{[%emt 00:01:56]} 31. Rcd1 {[%clk 00:01:08]} {[%emt 00:00:53]} Re8 {[%clk
00:01:39]} {[%emt 00:01:45]} 32. e5 {[%clk 00:01:03]} {[%emt 00:00:36]} h6
{[%clk 00:01:36]} {[%emt 00:00:32]} 33. Rd7 {[%clk 00:00:39]} {[%emt 00:00:55]}
Rf8 {[%clk 00:01:25]} {[%emt 00:00:41]} 34. Rf1 {[%clk 00:00:33]} {[%emt
00:00:36]} Qe4 {[%clk 00:00:50]} {[%emt 00:01:05]} 35. Rd2 {[%clk 00:00:32]}
{[%emt 00:00:30]} g5 {[%clk 00:00:46]} {[%emt 00:00:33]} 36. hxg5 {[%clk
00:00:56]} {[%emt 00:00:06]} hxg5 {[%clk 00:01:09]} {[%emt 00:00:07]} 37. Kxg3
{[%clk 00:00:39]} {[%emt 00:00:48]} Qf4+ {[%clk 00:01:10]} {[%emt 00:00:29]} 38.
Kg2 {[%clk 00:01:06]} {[%emt 00:00:03]} g4 {[%clk 00:01:17]} {[%emt 00:00:23]}
39. Rdf2 {[%clk 00:00:49]} {[%emt 00:00:47]} gxf3+ {[%clk 00:01:32]} {[%emt
00:00:15]} 40. Rxf3 {[%clk 00:01:19]} {[%emt 00:00:01]} Qg4+ {[%clk 00:01:43]}
{[%emt 00:00:18]} 41. Rg3 {[%clk 00:00:57]} {[%emt 00:00:52]} Qe2+ {[%clk
00:01:52]} {[%emt 00:00:21]} 0-1

[Event "Berliner Meisterschaft 2023"]
[Site "Berlin"]
[Date "2023.04.11"]
[Round "4.7"]
[White "Foerster, Jonas"]
[Black "Lagunow, Alexander"]
[Result "1/2-1/2"]
[TimeControl "90 minutes / 40 moves + 30 minutes + 30 seconds"]
[BlackTitle "IM"]
[WhiteFideId "4640098"]
[BlackFideId "4616049"]
[WhiteElo "2295"]
[BlackElo "2341"]

1. d4 {[%clk 01:30:46]} {[%emt 00:00:13]} Nf6 {[%clk 01:30:46]} {[%emt
00:00:15]} 2. Nf3 {[%clk 01:27:20]} {[%emt 00:03:56]} d5 {[%clk 01:31:08]}
{[%emt 00:00:08]} 3. c4 {[%clk 01:26:17]} {[%emt 00:01:33]} e6 {[%clk
01:31:30]} {[%emt 00:00:07]} 4. g3 {[%clk 01:25:07]} {[%emt 00:01:40]} dxc4
{[%clk 01:28:08]} {[%emt 00:03:50]} 5. Qa4+ {[%clk 01:23:27]} {[%emt 00:02:11]}
Nbd7 {[%clk 01:24:16]} {[%emt 00:04:21]} 6. Bg2 {[%clk 01:19:46]} {[%emt
00:04:11]} a6 {[%clk 01:21:35]} {[%emt 00:03:12]} 7. Qxc4 {[%clk 01:14:00]}
{[%emt 00:06:16]} b5 {[%clk 01:13:29]} {[%emt 00:08:36]} 8. Qc6 {[%clk
01:02:12]} {[%emt 00:12:17]} Rb8 {[%clk 01:12:11]} {[%emt 00:01:49]} 9. Bf4
{[%clk 00:47:46]} {[%emt 00:14:56]} Nd5 {[%clk 01:10:56]} {[%emt 00:01:44]} 10.
Bg5 {[%clk 00:42:32]} {[%emt 00:05:44]} Be7 {[%clk 01:08:19]} {[%emt 00:03:08]}
11. Qc1 {[%clk 00:38:08]} {[%emt 00:04:54]} c5 {[%clk 00:58:51]} {[%emt
00:09:58]} 12. dxc5 {[%clk 00:21:54]} {[%emt 00:16:45]} Nxc5 {[%clk 00:58:01]}
{[%emt 00:01:19]} 13. Qxc5 {[%clk 00:20:20]} {[%emt 00:02:04]} Bxc5 {[%clk
00:58:00]} {[%emt 00:00:31]} 14. Bxd8 {[%clk 00:20:46]} {[%emt 00:00:04]} Kxd8
{[%clk 00:58:26]} {[%emt 00:00:04]} 15. Ne5 {[%clk 00:20:43]} {[%emt 00:00:32]}
Ke8 {[%clk 00:57:51]} {[%emt 00:01:05]} 16. O-O {[%clk 00:18:12]} {[%emt
00:03:01]} Bb7 {[%clk 00:20:12]} {[%emt 00:38:09]} 17. Nd2 {[%clk 00:18:04]}
{[%emt 00:00:37]} Bd6 {[%clk 00:19:20]} {[%emt 00:01:23]} 18. Nd3 {[%clk
00:17:17]} {[%emt 00:01:17]} Ke7 {[%clk 00:19:24]} {[%emt 00:00:27]} 19. Ne4
{[%clk 00:16:37]} {[%emt 00:01:09]} Rhc8 {[%clk 00:18:35]} {[%emt 00:01:19]} 20.
Rac1 {[%clk 00:15:30]} {[%emt 00:01:37]} Rxc1 {[%clk 00:18:42]} {[%emt
00:00:24]} 21. Rxc1 {[%clk 00:15:53]} {[%emt 00:00:07]} Rc8 {[%clk 00:19:04]}
{[%emt 00:00:09]} 22. Rxc8 {[%clk 00:15:52]} {[%emt 00:00:30]} Bxc8 {[%clk
00:19:30]} {[%emt 00:00:04]} 23. Nxd6 {[%clk 00:16:03]} {[%emt 00:00:18]} Kxd6
{[%clk 00:19:55]} {[%emt 00:00:05]} 24. e4 {[%clk 00:15:46]} {[%emt 00:00:48]}
1/2-1/2

[Event "Berliner Meisterschaft 2023"]
[Site "Berlin"]
[Date "2023.04.11"]
[Round "4.8"]
[White "Haug, Havard"]
[Black "Acikel, Mert"]
[Result "1-0"]
[TimeControl "90 minutes / 40 moves + 30 minutes + 30 seconds"]
[BlackTitle "FM"]
[WhiteFideId "1547887"]
[BlackFideId "12956465"]
[WhiteElo "2090"]
[BlackElo "2240"]

1. e4 {[%clk 01:30:58]} {[%emt 00:00:01]} e5 {[%clk 01:24:59]} {[%emt
00:06:02]} 2. Nc3 {[%clk 01:31:19]} {[%emt 00:00:05]} Nf6 {[%clk 01:25:20]}
{[%emt 00:00:12]} 3. Bc4 {[%clk 01:31:42]} {[%emt 00:00:07]} Bc5 {[%clk
01:25:34]} {[%emt 00:00:17]} 4. d3 {[%clk 01:31:57]} {[%emt 00:00:14]} c6
{[%clk 01:25:50]} {[%emt 00:00:14]} 5. Nf3 {[%clk 01:31:25]} {[%emt 00:01:02]}
d6 {[%clk 01:26:06]} {[%emt 00:00:15]} 6. O-O {[%clk 01:31:22]} {[%emt
00:00:32]} O-O {[%clk 01:25:16]} {[%emt 00:01:20]} 7. Ne2 {[%clk 01:29:10]}
{[%emt 00:02:40]} h6 {[%clk 01:18:46]} {[%emt 00:07:00]} 8. Ng3 {[%clk
01:27:35]} {[%emt 00:02:04]} Re8 {[%clk 01:15:02]} {[%emt 00:04:14]} 9. Be3
{[%clk 01:24:15]} {[%emt 00:03:49]} Nbd7 {[%clk 01:13:15]} {[%emt 00:02:18]} 10.
c3 {[%clk 01:19:35]} {[%emt 00:05:10]} d5 {[%clk 01:09:50]} {[%emt 00:03:55]}
11. Bxc5 {[%clk 01:15:44]} {[%emt 00:04:21]} Nxc5 {[%clk 01:09:46]} {[%emt
00:00:34]} 12. exd5 {[%clk 01:15:57]} {[%emt 00:00:17]} cxd5 {[%clk 01:09:33]}
{[%emt 00:00:43]} 13. Bb5 {[%clk 01:16:20]} {[%emt 00:00:06]} Bd7 {[%clk
01:07:48]} {[%emt 00:02:15]} 14. Bxd7 {[%clk 01:16:12]} {[%emt 00:00:38]} Ncxd7
{[%clk 01:08:04]} {[%emt 00:00:13]} 15. Re1 {[%clk 01:14:27]} {[%emt 00:02:14]}
e4 {[%clk 00:58:45]} {[%emt 00:09:50]} 16. dxe4 {[%clk 01:12:03]} {[%emt
00:02:53]} dxe4 {[%clk 00:59:09]} {[%emt 00:00:06]} 17. Nd4 {[%clk 01:11:43]}
{[%emt 00:00:49]} Nc5 {[%clk 00:58:47]} {[%emt 00:00:53]} 18. Qe2 {[%clk
01:08:37]} {[%emt 00:03:35]} Qd5 {[%clk 00:52:39]} {[%emt 00:06:39]} 19. Red1
{[%clk 01:05:20]} {[%emt 00:03:46]} Qe5 {[%clk 00:52:41]} {[%emt 00:00:29]} 20.
Rd2 {[%clk 01:03:45]} {[%emt 00:02:04]} Rad8 {[%clk 00:40:15]} {[%emt
00:12:56]} 21. Rad1 {[%clk 01:02:30]} {[%emt 00:01:43]} Qg5 {[%clk 00:36:11]}
{[%emt 00:04:37]} 22. Ndf5 {[%clk 00:59:05]} {[%emt 00:03:56]} Nd3 {[%clk
00:29:58]} {[%emt 00:06:43]} 23. Qe3 {[%clk 00:56:20]} {[%emt 00:03:11]} Ng4
{[%clk 00:27:59]} {[%emt 00:02:33]} 24. Qxg5 {[%clk 00:56:05]} {[%emt
00:00:45]} hxg5 {[%clk 00:28:27]} {[%emt 00:00:01]} 25. Nxe4 {[%clk 00:53:10]}
{[%emt 00:03:24]} Rxe4 {[%clk 00:18:45]} {[%emt 00:10:12]} 26. f3 {[%clk
00:53:27]} {[%emt 00:00:14]} Ne3 {[%clk 00:19:05]} {[%emt 00:00:10]} 27. Rxd3
{[%clk 00:53:40]} {[%emt 00:00:16]} 1-0